[Event "87th Spanish Championship 2022"]
[Site "Linares"]
[Date "2022.08.13"]
[Round "4.13"]
[White "Massanet Massanet, Sebastian"]
[Black "Bernabeu Lopez, Carlos Javier"]
[Result "0-1"]
[ECO "C45"]
[WhiteElo "2232"]
[BlackElo "2421"]
[Annotator "TA"]
[PlyCount "114"]
[EventDate "2022.08.11"]
[EventType "swiss"]
[EventCountry "ESP"]
[SourceTitle "playchess.com"]
[Source "ChessBase"]
[SourceQuality "1"]
[TimeControl "5400+30"]

{[%evp 20,114,18,2,12,12,12,12,12,4,8,8,11,4,17,15,6,0,25,-26,25,-25,6,-43,-43,-40,-31,-32,-20,-20,-20,-20,-34,-34,-34,-37,-37,-41,-41,-50,-52,-60,-60,-58,-27,-27,-25,-28,-28,-28,-28,-28,-28,-28,-28,-28,-28,-22,-17,-20,-17,-15,-4,-4,-4,-4,-4,-97,-98,-115,-108,-199,-178,-163,-101,-495,-467,-677,-666,-739,-756,-4927,-1764,-4798,-4778,-4132,-2272,-1762,-1704,-12803,-9967,-7399,-6600,-5081,-1469,-29993,-29994]} 1. e4 {[%emt 0:00:43]} e5 {[%emt 0:00:05]} 2. Nf3 {[%emt 0:00:14]} Nc6 {[%emt 0:00:03]} 3. d4 {[%emt 0:01:46]} exd4 {[%emt 0:00:05]} 4. Nxd4 {[%emt 0:00:05]} Nf6 {[%emt 0:00:03][%cal Bg8f6,Bf6d5,Bd5c3][%mdl 32]} 5. Nxc6 {[%emt 0:01:11]} bxc6 {[%emt 0:00:05]} 6. e5 {[%emt 0:00:18]} Qe7 {[%emt 0:00:05]} 7. Qe2 {[%emt 0:00:13]} Nd5 {[%emt 0:00:05]} 8. c4 {[%emt 0:00:15]} Ba6 {[%emt 0:00:04]} 9. b3 {[%emt 0:00:25]} Qh4 {[%emt 0:00:14]} 10. Bb2 {[%emt 0:03:29]} Bb4+ {[%emt 0:00:08]} 11. Nd2 {[%emt 0:00:20]} Nc3 $1 {[%emt 0:00:04] C45: Scotch Game.} 12. Qe3 {[%emt 0:02:24]} Ne4 {[%emt 0:01:02] [#]} 13. g3 $1 {[%emt 0:00:49]} Qg4 {[%emt 0:00:16] [#] The position is equal.} 14. f3 $1 {[%emt 0:10:10]} Bxd2+ {[%emt 0:01:52] [#]} 15. Qxd2 $1 {[%emt 0:01:19]} Qxf3 {[%emt 0:01:43]} 16. Qg2 {[%emt 0:02:31] [#]} Qe3+ $146 {[%emt 0:02:00]} ({Predecessor:} 16... Ng5 17. Qxf3 Nxf3+ 18. Kf2 Ng5 19. Bg2 Bb7 20. Rad1 O-O-O 21. Rhf1 Rhe8 22. Kg1 Re7 {½-½ (30) Sanchez,M (2404)-Carvalho,L (2152) ICCF email 2012}) 17. Qe2 {[%emt 0:00:11]} Qxe2+ {[%emt 0:00:09]} 18. Bxe2 {[%emt 0:02:17]} Bb7 {[%emt 0:12:23]} 19. Rd1 {[%emt 0:08:04]} (19. Rf1 $142) 19... c5 {[%emt 0:14:36]} (19... h5 $142 $1) 20. Rf1 {[%emt 0:08:40]} (20. O-O $142) 20... Bc6 {[%emt 0:06:04]} (20... h5 $5 {[%cal Rh5h4]}) 21. Ba3 {[%emt 0:09:52]} (21. e6 $11 fxe6 22. Bh5+ (22. Bxg7 Rg8 $11) 22... Kd8 23. Rf7) 21... O-O $15 {[%emt 0:02:55]} 22. Bf3 {[%emt 0:03:52]} Rfe8 {[%emt 0:00:10]} 23. Bb2 {[%emt 0:02:17]} Rad8 {[%emt 0:08:09]} 24. Ke2 {[%emt 0:08:53]} Ng5 {[%emt 0:08:12]} 25. Bxc6 {[%emt 0:07:00]} dxc6 {[%emt 0:01:43]} 26. Ke3 {[%emt 0:02:46]} Ne6 {[%emt 0:00:54]} 27. Ke4 {[%emt 0:02:00]} Kf8 {[%emt 0:01:36]} 28. h4 {[%emt 0:02:09]} h5 {[%emt 0:01:16]} 29. Bc3 {[%emt 0:01:50]} Ke7 {[%emt 0:00:26]} 30. Bb2 {[%emt 0:02:29]} Rxd1 {[%emt 0:14:40] Really sharp!} 31. Rxd1 {[%emt 0:00:06][%mdl 4096] Endgame KRB-KRN} g5 {[%emt 0:00:12]} 32. hxg5 {[%emt 0:02:01]} Nxg5+ {[%emt 0:00:47]} 33. Kf5 {[%emt 0:00:53]} Ne6 {[%emt 0:00:06] Strongly threatening ...Rg8.} 34. g4 {[%emt 0:01:11]} Rg8 {[%emt 0:03:39]} 35. gxh5 {[%emt 0:00:19]} Rg5+ {[%emt 0:00:05]} 36. Ke4 {[%emt 0:00:05]} Rxh5 {[%emt 0:00:04]} 37. Rd2 {[%emt 0:00:11] Prevents Rh2.} Nf8 {[%emt 0:01:44]} 38. Rf2 {[%emt 0:04:27]} Nd7 {[%emt 0:00:37]} 39. Rg2 {[%emt 0:02:06]} Rh8 {[%emt 0:02:38]} 40. Kf5 {[%emt 0:01:31]} Rh1 {[%emt 0:00:52]} 41. Bc3 {[%emt 0:01:24]} Nf8 {[%emt 0:01:14]} 42. Rf2 {[%emt 0:02:43]} Ne6 {[%emt 0:00:51]} 43. Ba5 {[%emt 0:02:25] [#]} (43. Bd2 $11) 43... Rh4 $1 $17 {[%emt 0:00:53]} 44. Bc3 {[%emt 0:01:59]} Nd4+ {[%emt 0:01:57]} 45. Bxd4 {[%emt 0:00:41]} (45. Kg5 $17 {is the only way for White.} Re4 46. Bxd4 cxd4 47. Kf5) 45... cxd4 {[%emt 0:00:06] KR-KR} 46. Kg5 {[%emt 0:02:08]} Rh3 {[%emt 0:04:24]} ({Better is} 46... Rh1 $19 {Threatens to win with ...Ke6.} 47. Kf5 Rh4) 47. c5 $2 {[%emt 0:00:45][%mdl 8192] Now White is beyond hope.} (47. Kf5 $17) 47... Ke6 $19 {[%emt 0:01:28]} 48. Kg4 {[%emt 0:00:30]} (48. Kf4 $142 Re3 49. Rh2) 48... Re3 {[%emt 0:02:50]} 49. Rf6+ {[%emt 0:00:31]} Kxe5 {[%emt 0:00:31]} 50. Rxf7 {[%emt 0:00:07]} d3 {[%emt 0:01:01]} 51. Rd7 {[%emt 0:00:47]} Re4+ {[%emt 0:00:56]} 52. Kf3 {[%emt 0:00:01]} Rd4 {[%emt 0:00:05]} 53. Re7+ {[%emt 0:00:27] [#]} Kf5 $1 {[%emt 0:01:50] ( -> ...d2)} 54. Ke3 {[%emt 0:01:09]} d2 {[%emt 0:00:14]} 55. Kxd4 {[%emt 0:00:15]} d1=Q+ {[%emt 0:00:07]} 56. Kc3 {[%emt 0:00:44]} Qc1+ {[%emt 0:01:00]} 57. Kb4 {[%emt 0:00:21]} a5+ {[%emt 0:00:20] Weighted Error Value: White=0.77/Black=0.23 (precise)} 0-1

[Event "87th Spanish Championship 2022"]
[Site "Linares"]
[Date "2022.08.13"]
[Round "4.14"]
[White "Lianes Garcia, Marcos"]
[Black "Gonzalez Guedes, Iyan"]
[Result "1/2-1/2"]
[ECO "B92"]
[WhiteElo "2411"]
[BlackElo "2250"]
[Annotator "TA"]
[PlyCount "140"]
[EventDate "2022.08.11"]
[EventType "swiss"]
[EventCountry "ESP"]
[SourceTitle "playchess.com"]
[Source "ChessBase"]
[SourceQuality "1"]
[TimeControl "5400+30"]

{[%evp 13,140,8,7,0,5,3,14,0,13,11,45,35,42,31,37,41,31,56,82,75,59,37,37,28,35,29,136,28,35,28,65,69,166,155,135,120,115,119,127,125,131,77,75,68,81,35,76,91,158,53,38,51,52,56,92,34,128,154,143,91,111,35,20,20,34,27,54,54,55,54,55,36,36,36,36,36,36,27,27,27,37,37,37,37,37,37,37,37,37,37,37,37,37,37,67,67,67,37,37,37,37,37,44,44,44,44,44,26,26,28,28,6,6,0,32,0,0,0,28,0,0,0,0,0,0,0,0,0,0]} 1. e4 {[%emt 0:00:03]} c5 {[%emt 0:00:06]} 2. Nf3 {[%emt 0:00:18]} d6 {[%emt 0:00:02]} 3. d4 {[%emt 0:00:39]} cxd4 {[%emt 0:00:02]} 4. Nxd4 {[%emt 0:00:57]} Nf6 {[%emt 0:00:15]} 5. Nc3 {[%emt 0:00:10]} a6 {[%emt 0:00:01]} 6. Be2 {[%emt 0:01:50]} e5 {[%emt 0:00:10]} 7. Nb3 {[%emt 0:00:20]} Be7 {[%emt 0:00:02]} 8. h4 {[%emt 0:00:31] B92: Sicilian Najdorf: 6 Be2.} Be6 {[%emt 0:02:08]} 9. f4 {[%emt 0:00:56]} exf4 {[%emt 0:01:23]} 10. Bxf4 {[%emt 0:00:15]} Nc6 {[%emt 0:00:10]} 11. Qd2 {[%emt 0:00:51]} Rc8 {[%emt 0:04:45]} 12. O-O-O {[%emt 0:01:03]} Ne5 {[%emt 0:00:14]} 13. Qe3 {[%emt 0:00:44] [#]} Qc7 $146 {[%emt 0:00:56]} ({Predecessor:} 13... Nfd7 14. Qg3 O-O 15. h5 Kh8 16. Rhf1 b5 17. Kb1 Qc7 18. Nd4 Rfe8 19. Bc1 Bf8 {½-½ (80) Plazuelo Pascual,J (2448)-Vignesh,N (2427) Seville 2022}) 14. Nd4 {[%emt 0:05:33]} b5 {[%emt 0:11:07]} 15. a3 {[%emt 0:03:19]} Qa5 {[%emt 0:08:26][%cal Oc8c3]} 16. Nxe6 {[%emt 0:48:17]} fxe6 {[%emt 0:00:32]} 17. Kb1 {[%emt 0:02:19]} (17. Rhf1 $5 {[%cal Rf4e5]}) 17... b4 {[%emt 0:26:53]} 18. axb4 {[%emt 0:00:49]} Qxb4 {[%emt 0:00:03]} 19. Rd4 {[%emt 0:00:43]} Qb7 {[%emt 0:09:34] [#]} (19... Nc4 $1 $11 20. Rxc4 Rxc4) 20. Ra4 {[%emt 0:01:58]} ({White should play} 20. Qh3 $1 $16) 20... Rc6 $11 {[%emt 0:01:17]} ({Not} 20... Rb8 21. b3 $16) 21. Qh3 $36 {[%emt 0:06:57][%cal Oh3e6][%mdl 2048] White has some pressure.} Qc8 {[%emt 0:02:57]} 22. g4 {[%emt 0:02:49][%cal Bg2g4,Bg4g5][%mdl 32] aiming for g5.} O-O {[%emt 0:00:38]} (22... Nfd7 $1 $14) 23. g5 $18 {[%emt 0:00:36]} Ne8 {[%emt 0:01:47]} 24. Bd2 {[%emt 0:03:23]} Nc7 {[%emt 0:01:43]} 25. Rf1 {[%emt 0:01:05]} Qd7 {[%emt 0:02:06]} 26. Rxf8+ {[%emt 0:00:58]} Bxf8 {[%emt 0:00:01]} 27. Ra5 {[%emt 0:01:04]} (27. Rb4 $142) 27... g6 $16 {[%emt 0:05:46]} 28. Qe3 {[%emt 0:02:10]} Bg7 {[%emt 0:01:41]} 29. Qa7 {[%emt 0:01:00]} (29. Ra4 $16) 29... Qc8 {[%emt 0:00:27]} 30. Ra4 {[%emt 0:02:36] White is more active.} Nb5 {[%emt 0:06:32]} (30... Nd7 $142) 31. Nxb5 {[%emt 0:05:24]} (31. Bxb5 $16 axb5 32. Nxb5) 31... axb5 $14 {[%emt 0:00:14]} 32. Bxb5 {[%emt 0:00:53]} Rxc2 {[%emt 0:05:59]} 33. Qa8 {[%emt 0:00:52]} Rc5 {[%emt 0:01:10]} 34. Bc3 {[%emt 0:01:43] A strong pair of Bishops.} Qxa8 {[%emt 0:03:04]} (34... h6 $14) 35. Rxa8+ $16 {[%emt 0:00:07]} Bf8 {[%emt 0:00:05]} 36. Be2 {[%emt 0:00:36]} Rc7 {[%emt 0:02:04]} 37. Bxe5 {[%emt 0:03:45]} (37. Bb4 $16 {Threatens to win with Bxd6.} Rc6 38. Ba5) 37... dxe5 {[%emt 0:00:08][%mdl 4096] Endgame KRB-KRB} 38. Ra6 {[%emt 0:00:20]} Kf7 {[%emt 0:03:06]} 39. Bg4 {[%emt 0:00:04]} h6 {[%emt 0:01:10]} 40. Bxe6+ {[%emt 0:00:37]} Kg7 {[%emt 0:00:40]} 41. gxh6+ {[%emt 0:00:50]} Kxh6 {[%emt 0:00:46]} 42. Bg4 {[%emt 0:00:27]} Kg7 {[%emt 0:00:46]} 43. h5 {[%emt 0:01:01]} gxh5 {[%emt 0:00:00]} 44. Bxh5 {[%emt 0:00:07]} Bc5 {[%emt 0:00:48]} 45. Be2 {[%emt 0:00:34]} Bd4 {[%emt 0:00:30]} 46. b3 {[%emt 0:00:31][%cal Bb2b3,Bb3b4,Bb4b5][%mdl 32]} Kf7 {[%emt 0:00:26]} 47. Bc4+ {[%emt 0:00:13]} Ke7 {[%emt 0:00:02]} 48. Kc2 {[%emt 0:00:18]} Ra7 {[%emt 0:00:30]} 49. Rh6 {[%emt 0:00:35]} Kd7 {[%emt 0:00:41]} 50. b4 {[%emt 0:00:30]} Ra3 {[%emt 0:00:19]} 51. Bb3 {[%emt 0:00:33]} Kc7 {[%emt 0:00:36]} 52. Rg6 {[%emt 0:00:13]} Kb7 {[%emt 0:00:48]} 53. b5 {[%emt 0:00:16]} Ra7 {[%emt 0:00:43]} 54. Bd5+ {[%emt 0:00:19]} Kc7 {[%emt 0:00:26]} 55. Kb3 {[%emt 0:00:15]} Ra1 {[%emt 0:00:19]} 56. Kb4 {[%emt 0:01:34][%cal Ob5b6] [#] And now b6+! would win.} Rb1+ {[%emt 0:00:05]} 57. Bb3 {[%emt 0:00:29]} Rb2 {[%emt 0:01:04]} 58. Rc6+ {[%emt 0:00:40]} Kb7 {[%emt 0:00:11]} 59. Rc1 {[%emt 0:00:36]} Kb6 {[%emt 0:00:31]} 60. Ka4 {[%emt 0:00:43]} Bc5 {[%emt 0:00:41]} 61. Rh1 {[%emt 0:00:08]} Rd2 {[%emt 0:00:24] Hoping for ...Rd4+.} 62. Bc4 {[%emt 0:00:49]} Rd4 {[%emt 0:00:25][%csl LRc4,LRe4]} 63. Rh6+ {[%emt 0:00:16]} Rd6 {[%emt 0:00:25]} (63... Bd6 $5 {[%cal Rd4c4]} 64. Kb3 Kc5 $11) 64. Rh5 {[%emt 0:00:42]} Rd4 {[%emt 0:00:29][%csl LRc4,LRe4]} 65. Kb3 {[%emt 0:00:12]} Bd6 {[%emt 0:00:42]} 66. Rh8 {[%emt 0:00:55]} Rxe4 {[%emt 0:00:34] The position is equal.} 67. Rc8 {[%emt 0:00:29]} Bc7 {[%emt 0:00:36]} 68. Ra8 {[%emt 0:00:31] Ra6+ is the strong threat.} Rd4 {[%emt 0:00:26]} (68... Kc5 $5 {[%cal Re4c4]} 69. Rc8 Re3+ 70. Kc2 (70. Ka4 Kb6 $11) 70... Kd6 $11) 69. Ra6+ {[%emt 0:00:16]} Kb7 {[%emt 0:00:01]} 70. Re6 {[%emt 0:00:21]} Rd6 {[%emt 0:00:27] Weighted Error Value: White=0.11 (very precise) /Black=0.17 (very precise)} 1/2-1/2

[Event "87th Spanish Championship 2022"]
[Site "Linares"]
[Date "2022.08.13"]
[Round "4.15"]
[White "Tejedor Fuente, Enrique"]
[Black "Guerra Bastida, Diego"]
[Result "1/2-1/2"]
[ECO "C77"]
[WhiteElo "2419"]
[BlackElo "2242"]
[Annotator "TA"]
[PlyCount "143"]
[EventDate "2022.08.11"]
[EventType "swiss"]
[EventCountry "ESP"]
[SourceTitle "playchess.com"]
[Source "ChessBase"]
[SourceQuality "1"]
[TimeControl "5400+30"]

{[%evp 24,143,24,29,29,18,21,23,23,16,22,22,17,19,34,18,36,16,10,0,23,10,23,24,25,18,32,25,23,14,23,28,47,13,7,4,12,0,0,0,0,0,0,0,0,0,8,0,22,0,31,6,46,3,4,0,36,37,75,39,96,31,77,64,69,59,59,59,82,17,22,18,26,3,17,0,33,8,15,10,52,14,33,49,35,46,84,0,0,0,0,0,0,0,0,0,0,0,0,0,0,0,0,0,0,0,0,0,0,0,0,0,0,0,0,0,0,0,0,0,0,0]} 1. e4 {[%emt 0:01:22]} e5 {[%emt 0:00:23]} 2. Nf3 {[%emt 0:00:06]} Nc6 {[%emt 0:00:06]} 3. Bb5 {[%emt 0:00:20]} a6 {[%emt 0:00:51]} 4. Ba4 {[%emt 0:00:43]} Nf6 {[%emt 0:00:29]} 5. d3 {[%emt 0:00:26]} b5 {[%emt 0:03:29]} 6. Bb3 {[%emt 0:00:00]} Be7 {[%emt 0:00:09]} 7. O-O {[%emt 0:00:00]} d6 {[%emt 0:00:19]} 8. c3 {[%emt 0:00:00]} O-O {[%emt 0:01:04]} 9. Nbd2 {[%emt 0:00:00][%cal Bb1d2,Bd2f1,Bf1g3][%mdl 32]} Nb8 {[%emt 0:02:00][%cal Bc6b8,Bb8d7,Bd7c5][%mdl 32]} 10. a4 {[%emt 0:03:59]} Bb7 {[%emt 0:01:54]} 11. axb5 {[%emt 0:02:59]} axb5 {[%emt 0:00:16]} 12. Rxa8 {[%emt 0:00:03]} Bxa8 {[%emt 0:00:08]} 13. Re1 {[%emt 0:00:14]} Nbd7 {[%emt 0:01:03] C88: Closed Ruy Lopez: Anti-Marshall Systems.} 14. Nf1 {[%emt 0:00:21]} Nc5 {[%emt 0:01:29]} 15. Bc2 {[%emt 0:02:54]} Re8 {[%emt 0:03:15] White has an edge.} 16. Ng3 {[%emt 0:06:18]} Bf8 {[%emt 0:01:43] [#]} 17. b4 $146 {[%emt 0:02:27]} ({Predecessor:} 17. h3 g6 18. b4 Ncd7 19. Bb3 h6 20. Qc2 d5 21. Bd2 c5 22. bxc5 Nxc5 23. exd5 Bxd5 24. Bxd5 Qxd5 {½-½ (49) Mogranzini,R (2367)-Haddouche,M (2279) Turin 2006}) 17... Ncd7 {[%emt 0:02:04]} 18. d4 {[%emt 0:00:40]} g6 {[%emt 0:15:54]} 19. h3 {[%emt 0:05:19]} Bg7 {[%emt 0:00:47]} 20. dxe5 {[%emt 0:00:58]} (20. Qd3 $5 {[%cal Rd3b5]}) 20... Nxe5 {[%emt 0:04:58]} 21. Nxe5 {[%emt 0:00:45]} dxe5 {[%emt 0:00:25]} 22. Qf3 {[%emt 0:03:19]} Qe7 {[%emt 0:06:47]} 23. Be3 {[%emt 0:05:56]} Qe6 {[%emt 0:03:21]} 24. Qe2 {[%emt 0:04:13]} Qa2 {[%emt 0:03:15]} 25. Bd3 {[%emt 0:00:54]} Qxe2 {[%emt 0:00:10]} 26. Rxe2 {[%emt 0:00:11]} Bc6 {[%emt 0:01:51]} 27. Ra2 {[%emt 0:00:27]} Ra8 {[%emt 0:07:13]} 28. Rxa8+ {[%emt 0:04:06]} Bxa8 {[%emt 0:00:08]} 29. f3 {[%emt 0:05:39]} Bc6 {[%emt 0:00:38]} 30. Ne2 {[%emt 0:02:31]} Ne8 {[%emt 0:02:53]} 31. c4 {[%emt 0:03:37]} bxc4 {[%emt 0:00:22]} 32. Bxc4 {[%emt 0:00:22]} Nd6 {[%emt 0:00:31]} 33. Bb3 {[%emt 0:00:51]} Nb5 {[%emt 0:11:22]} 34. Nc1 {[%emt 0:01:30]} Nd4 {[%emt 0:01:04]} 35. Bc4 {[%emt 0:02:19]} Kf8 {[%emt 0:04:15]} 36. Kf2 {[%emt 0:01:32]} f5 {[%emt 0:00:31]} 37. exf5 {[%emt 0:00:46]} (37. Bxd4 $5 exd4 38. exf5 $11) 37... gxf5 {[%emt 0:00:09]} 38. f4 {[%emt 0:11:37]} (38. Bxd4 $5 exd4 39. Be6 $11) 38... e4 {[%emt 0:05:24]} 39. g4 {[%emt 0:01:13]} fxg4 {[%emt 0:00:25]} 40. hxg4 {[%emt 0:00:01]} Bd7 {[%emt 0:01:24]} 41. Kg3 {[%emt 0:00:20]} Ke8 {[%emt 0:06:16] [#]} (41... Ke7 $14) 42. Ne2 {[%emt 0:04:34]} (42. Bd5 $1 $16) 42... Bb5 {[%emt 0:02:11]} (42... Nc2 $1 $14 43. Bc5 Bf8) 43. Bxb5+ $16 {[%emt 0:03:16]} ({Of course not} 43. Nxd4 Bxc4 44. g5 Bf8 $11) 43... Nxb5 {[%emt 0:00:06][%mdl 4096] Endgame KBN-KBN} 44. f5 {[%emt 0:00:09]} Be5+ {[%emt 0:00:22]} 45. Bf4 {[%emt 0:00:25]} Bb2 {[%emt 0:00:42]} 46. Bd2 {[%emt 0:05:49]} (46. Kh4 $16) 46... Be5+ $1 $11 {[%emt 0:00:14]} 47. Kf2 {[%emt 0:00:36]} Nd6 $1 {[%emt 0:02:28]} 48. Bf4 {[%emt 0:01:20]} Nc4 {[%emt 0:01:37]} 49. Kg3 {[%emt 0:03:23]} c6 {[%emt 0:00:44]} 50. g5 {[%emt 0:04:29]} Kf7 {[%emt 0:00:14]} 51. Kg4 {[%emt 0:03:02]} Bb2 {[%emt 0:01:34]} 52. Bb8 {[%emt 0:02:32]} (52. Ng3 $5 {[%cal Rg3e4]}) 52... Be5 {[%emt 0:01:16]} 53. Ba7 {[%emt 0:00:07]} ({Don't do} 53. Bxe5 Nxe5+ 54. Kf4 Nd3+ 55. Kxe4 Nxb4 $16) 53... Bd6 {[%emt 0:00:27]} 54. Bc5 {[%emt 0:01:44] And now Bxd6 would win.} Ne5+ {[%emt 0:00:50] [#]} 55. Kf4 {[%emt 0:00:54]} (55. Kg3 $1 $16 Bxc5 56. bxc5) 55... Nd3+ {[%emt 0:00:13] The position is equal.} 56. Kxe4 {[%emt 0:00:01]} Nxc5+ {[%emt 0:00:12]} 57. bxc5 {[%emt 0:00:01]} Bxc5 {[%emt 0:00:15] KB-KN} 58. Nd4 {[%emt 0:04:37]} Be7 {[%emt 0:00:16]} 59. Nf3 {[%emt 0:00:53]} c5 {[%emt 0:00:19]} 60. Kd5 {[%emt 0:00:48]} c4 {[%emt 0:00:17]} 61. Kxc4 {[%emt 0:00:30] Hoping for Kd5.} Bxg5 $1 {[%emt 0:00:29]} 62. Kd5 {[%emt 0:00:19]} Bf6 {[%emt 0:00:09]} 63. Ke4 {[%emt 0:00:08]} h5 {[%emt 0:00:27]} 64. Kf4 {[%emt 0:00:01]} Ke7 {[%emt 0:00:30]} 65. Nd2 {[%emt 0:00:18]} Kf7 {[%emt 0:00:10]} 66. Ne4 {[%emt 0:00:02]} Ke7 {[%emt 0:00:11]} 67. Nf2 {[%emt 0:00:33]} Kf7 {[%emt 0:00:08]} 68. Nh1 {[%emt 0:00:12]} Bd8 {[%emt 0:00:22]} 69. Ke4 {[%emt 0:00:08]} h4 {[%emt 0:00:59]} 70. Kf4 {[%emt 0:00:01]} h3 {[%emt 0:00:10]} 71. Kg4 {[%emt 0:00:00]} h2 {[%emt 0:00:00]} 72. Kh3 {[%emt 0:00:00] Weighted Error Value: White=0.14 (very precise) /Black=0.10 (very precise)} 1/2-1/2

[Event "87th Spanish Championship 2022"]
[Site "Linares"]
[Date "2022.08.13"]
[Round "4.16"]
[White "Ingunza Curro, Andres"]
[Black "De La Cruz Revilla, Miguel"]
[Result "1/2-1/2"]
[ECO "B40"]
[WhiteElo "2370"]
[BlackElo "2213"]
[Annotator "RC"]
[PlyCount "129"]
[EventDate "2022.08.11"]
[EventType "swiss"]
[EventCountry "ESP"]
[SourceTitle "playchess.com"]
[Source "ChessBase"]
[SourceQuality "1"]
[TimeControl "5400+30"]

1. e4 c5 {[%emt 0:01:54]} 2. Nf3 {[%emt 0:01:16]} e6 {[%emt 0:00:26]} 3. d3 {[%emt 0:00:46]} Nc6 {[%emt 0:00:21]} 4. g3 {[%emt 0:00:05]} Be7 {[%emt 0:00:09]} 5. Bg2 {[%emt 0:00:04]} d5 {[%emt 0:00:07]} 6. Qe2 {[%emt 0:00:26]} Nf6 {[%emt 0:00:06]} 7. O-O {[%emt 0:00:05]} O-O {[%emt 0:00:04]} 8. e5 {[%emt 0:00:09]} Nd7 {[%emt 0:00:04]} 9. c4 {[%emt 0:00:01]} a6 {[%emt 0:01:03]} 10. Nc3 {[%emt 0:02:26]} Nd4 {[%emt 0:03:43]} 11. Nxd4 {[%emt 0:00:06]} cxd4 {[%emt 0:00:09]} 12. Nb1 {[%emt 0:00:16]} dxc4 {[%emt 0:02:18]} 13. dxc4 {[%emt 0:00:06]} Qc7 {[%emt 0:01:38]} 14. Re1 {[%emt 0:06:27]} Rd8 {[%emt 0:02:04]} 15. Bf4 {[%emt 0:04:10]} Nf8 {[%emt 0:00:43]} 16. b3 {[%emt 0:17:53]} Bd7 {[%emt 0:01:53]} 17. h4 {[%emt 0:01:43]} Bc6 {[%emt 0:01:23]} 18. h5 {[%emt 0:00:10]} h6 {[%emt 0:01:37]} 19. Nd2 {[%emt 0:01:58]} Bb4 {[%emt 0:03:43]} 20. Rad1 {[%emt 0:08:42]} b5 {[%emt 0:07:13]} 21. Qg4 {[%emt 0:06:10]} Kh8 {[%emt 0:00:27]} 22. Ne4 {[%emt 0:06:22]} Bxe1 {[%emt 0:04:01]} 23. Rxe1 {[%emt 0:01:24]} Bxe4 {[%emt 0:03:21]} 24. Bxe4 {[%emt 0:00:14]} bxc4 {[%emt 0:03:35]} 25. bxc4 {[%emt 0:03:38]} Rab8 {[%emt 0:01:50]} 26. Bd3 {[%emt 0:04:25]} Qe7 {[%emt 0:02:39]} 27. Bc1 {[%emt 0:06:46]} Qb4 {[%emt 0:10:23]} 28. Qe4 {[%emt 0:05:49]} Rdc8 {[%emt 0:05:34]} 29. g4 {[%emt 0:02:49]} Rxc4 {[%emt 0:01:57]} 30. Bf4 {[%emt 0:02:40]} Rc3 {[%emt 0:01:13]} 31. Rb1 {[%emt 0:00:29]} Rxd3 {[%emt 0:01:05]} 32. Rxb4 {[%emt 0:00:02]} Rd1+ {[%emt 0:00:08]} 33. Kh2 {[%emt 0:02:16]} Rxb4 {[%emt 0:00:06]} 34. g5 {[%emt 0:00:32]} Rb2 {[%emt 0:06:12]} 35. Qf3 {[%emt 0:04:14]} hxg5 {[%emt 0:18:21]} 36. Bxg5 {[%emt 0:01:17]} Rf1 {[%emt 0:00:44]} 37. Bh4 {[%emt 0:00:02]} Kg8 {[%emt 0:05:54]} 38. Kg2 {[%emt 0:06:49]} Rbb1 {[%emt 0:02:09]} 39. Qa8 {[%emt 0:00:09]} Rg1+ {[%emt 0:00:46]} 40. Kf3 {[%emt 0:00:29]} d3 {[%emt 0:03:15]} 41. Qd8 {[%emt 0:00:10]} Rb7 {[%emt 0:05:56]} 42. Qxd3 {[%emt 0:00:41]} Nd7 {[%emt 0:00:35]} 43. Bg3 {[%emt 0:01:23]} Rgb1 {[%emt 0:00:35]} 44. Qxa6 {[%emt 0:00:27]} R1b4 {[%emt 0:00:30]} 45. Qa8+ {[%emt 0:01:13]} Rb8 {[%emt 0:00:11]} 46. Qc6 {[%emt 0:00:17]} Nb6 {[%emt 0:00:35]} 47. Qc1 {[%emt 0:00:35]} Nd5 {[%emt 0:00:28]} 48. Qg5 {[%emt 0:00:05]} Kh7 {[%emt 0:00:13]} 49. Qd2 {[%emt 0:02:40]} Ra8 {[%emt 0:00:32]} 50. Qc2+ {[%emt 0:00:14]} Kg8 {[%emt 0:00:20]} 51. Qc6 {[%emt 0:00:18]} Ra3+ {[%emt 0:00:36]} 52. Kg2 {[%emt 0:00:13]} Rb8 {[%emt 0:00:22]} 53. h6 {[%emt 0:00:29]} gxh6 {[%emt 0:00:10]} 54. Qc1 {[%emt 0:00:09]} Rxa2 {[%emt 0:00:57]} 55. Qxh6 {[%emt 0:00:02]} Rb4 {[%emt 0:01:00]} 56. Qg5+ {[%emt 0:00:40]} Kh7 {[%emt 0:00:20]} 57. Qd8 {[%emt 0:01:10]} Ne3+ {[%emt 0:00:41]} 58. Kf3 {[%emt 0:02:21]} Nf5 {[%emt 0:00:18]} 59. Kg2 {[%emt 0:01:24]} Nxg3 {[%emt 0:00:33]} 60. Kxg3 {[%emt 0:00:05]} Ra3+ {[%emt 0:00:14]} 61. f3 {[%emt 0:00:43]} Rbb3 {[%emt 0:00:14]} 62. Qh4+ {[%emt 0:00:06]} Kg7 {[%emt 0:00:14]} 63. Qf6+ {[%emt 0:00:03]} Kg8 {[%emt 0:00:06]} 64. Qg5+ {[%emt 0:00:23]} Kh7 {[%emt 0:00:10]} 65. Qh5+ {[%emt 0:00:11]} 1/2-1/2